fUSD/lending_fUSD_20250530
["ID","MTS","AMOUNT","RATE_DAILY","PERIOD"]
[363067965,1748566240674,-424.06924675,0.00021917,2]
[363067967,1748566240684,-420.0,0.00021917,2]
[363067969,1748566240693,-1355.29,0.00021917,2]
[363067971,1748566240703,-500.0,0.00021917,2]
[363067973,1748566240712,-500.0,0.00021917,2]
[363067975,1748566240722,-420.0,0.00021917,2]
[363067977,1748566240731,-500.0,0.00021917,2]
[363067979,1748566240740,-678.66,0.00021917,2]
[363067981,1748566240750,-543.42,0.00021917,2]
[363067983,1748566240759,-501.84826263,0.00021917,2]
[363067985,1748566240768,-420.0,0.00021917,2]
[363067987,1748566240780,-420.0,0.00021917,2]
[363067989,1748566240790,-1141.73,0.00021917,2]
[363067991,1748566240799,-420.0,0.00021917,2]
[363067993,1748566240809,-420.0,0.00021917,2]
[363067995,1748566240818,-663.68,0.00021917,2]
[363067997,1748566240828,-420.0,0.00021917,2]
[363067999,1748566240837,-752.74,0.00021917,2]
[363068001,1748566240847,-2296.67,0.00021917,2]
[363068003,1748566240856,-500.0,0.00021917,2]
[363068005,1748566240868,-500.0,0.00021917,2]
[363068007,1748566240877,-420.0,0.00021917,2]
[363068009,1748566240886,-1146.8,0.00021917,2]
[363068012,1748566240898,-637.04,0.00021917,2]
[363068013,1748566240908,-213.23799594,0.00021917,2]
[363068015,1748566240918,-400.0,0.00021917,2]
[363068017,1748566240927,-619.6,0.00021917,2]
[363068019,1748566240937,-1253.04,0.00021917,2]
[363068021,1748566240946,-452.08,0.00021917,2]
[363068023,1748566240956,-420.0,0.00021917,2]
[363068025,1748566240966,-420.0,0.00021917,2]
[363068027,1748566240975,-420.0,0.00021917,2]
[363068029,1748566240985,-423.60156751,0.00021917,2]
[363068031,1748566240994,-577.27,0.00021917,2]
[363068033,1748566241004,-910.46,0.00021917,2]
[363068036,1748566241013,-1469.29,0.00021917,2]
[363068037,1748566241023,-699.43,0.00021917,2]
[363068040,1748566241033,-422.90365431,0.00021917,2]
[363068041,1748566241042,-504.99,0.00021917,2]
[363068043,1748566241052,-451.91,0.00021917,2]
[363068046,1748566241061,-651.48,0.00021917,2]
[363068047,1748566241071,-420.0,0.00021917,2]
[363068049,1748566241080,-514.18,0.00021917,2]
[363068051,1748566241089,-420.0,0.00021917,2]
[363068053,1748566241098,-420.0,0.00021917,2]
[363068055,1748566241108,-420.0,0.00021917,2]
[363068058,1748566241118,-1913.53,0.00021917,2]
[363068060,1748566241129,-1763.55,0.00021917,2]
[363068062,1748566241139,-420.0,0.00021917,2]
[363068064,1748566241148,-420.0,0.00021917,2]
[363068066,1748566241158,-1268.52,0.00021917,2]
[363068068,1748566241167,-1092.38,0.00021917,2]
[363068070,1748566241176,-420.0,0.00021917,2]
[363068072,1748566241185,-420.0,0.00021917,2]
[363068074,1748566241194,-446.5152984,0.00021917,2]
[363068076,1748566241204,-618.64,0.00021917,2]
[363068078,1748566241213,-420.0,0.00021917,2]
[363068080,1748566241222,-503.54,0.00021917,2]
[363068081,1748566241231,-745.45,0.00021917,2]
[363068083,1748566241240,-420.0,0.00021917,2]
[363068085,1748566241250,-864.7,0.00021917,2]
[363068088,1748566241259,-1163.2,0.00021917,2]
[363068089,1748566241269,-420.0,0.00021917,2]
[363068092,1748566241279,-638.66,0.00021917,2]
[363068094,1748566241288,-420.0,0.00021917,2]
[363068096,1748566241298,-420.0,0.00021917,2]
[363068098,1748566241308,-420.0,0.00021917,2]
[363068100,1748566241318,-663.23,0.00021917,2]
[363068101,1748566241326,-723.57,0.00021917,2]
[363068103,1748566241335,-1329.68,0.00021917,2]
[363068105,1748566241345,-1465.51,0.00021917,2]
[363068107,1748566241354,-420.0,0.00021917,2]
[363068109,1748566241365,-498.73,0.00021917,2]
[363068111,1748566241374,-436.55,0.00021917,2]
[363068113,1748566241383,-420.0,0.00021917,2]
[363068115,1748566241393,-536.69,0.00021917,2]
[363068117,1748566241402,-1618.92,0.00021917,2]
[363068119,1748566241412,-422.6066787,0.00021917,2]
[363068121,1748566241421,-1304.82,0.00021917,2]
[363068123,1748566241431,-497.3,0.00021917,2]
[363068125,1748566241440,-586.22,0.00021917,2]
[363068127,1748566241449,-500.0,0.00021917,2]
[363068129,1748566241458,-500.0,0.00021917,2]
[363068131,1748566241468,-500.0,0.00021917,2]
[363068133,1748566241478,-420.0,0.00021917,2]
[363068135,1748566241487,-420.0,0.00021917,2]
[363068137,1748566241497,-1374.56,0.00021917,2]
[363068139,1748566241506,-575.69,0.00021917,2]
[363068141,1748566241515,-727.27,0.00021917,2]
[363068143,1748566241525,-616.09,0.00021917,2]
[363068145,1748566241534,-1696.41,0.00021917,2]
[363068147,1748566241543,-757.04,0.00021917,2]
[363068149,1748566241552,-803.97,0.00021917,2]
[363068151,1748566241561,-1230.39,0.00021917,2]
[363068153,1748566241571,-420.0,0.00021917,2]
[363068155,1748566241582,-826.38,0.00021917,2]
[363068157,1748566241592,-420.0,0.00021917,2]
[363068159,1748566241601,-574.02,0.00021917,2]
[363068161,1748566241610,-420.0,0.00021917,2]
[363068163,1748566241623,-2247.96,0.00021917,2]
[363068165,1748566241633,-591.65,0.00021917,2]
[363068167,1748566241642,-535.4,0.00021917,2]
[363068169,1748566241653,-500.8,0.00021917,2]
[363068171,1748566241664,-762.27,0.00021917,2]
[363068173,1748566241673,-420.0,0.00021917,2]
[363068175,1748566241682,-420.0,0.00021917,2]
[363068177,1748566241693,-865.96,0.00021917,2]
[363068179,1748566241703,-1254.33,0.00021917,2]
[363068181,1748566241712,-420.0,0.00021917,2]
[363068183,1748566241721,-296.23677537,0.00021917,2]
[363068185,1748566241730,-352.92026571,0.00021917,2]
[363068187,1748566241738,-455.62,0.00021917,2]
[363068189,1748566241749,-1475.65,0.00021917,2]
[363068191,1748566241759,-420.0,0.00021917,2]
[363068193,1748566241768,-482.56132451,0.00021917,2]
[363068195,1748566241778,-604.68,0.00021917,2]
[363068197,1748566241787,-420.0,0.00021917,2]
[363068199,1748566241796,-420.0,0.00021917,2]
[363068201,1748566241805,-989.41,0.00021917,2]
[363068203,1748566241814,-420.0,0.00021917,2]
[363068205,1748566241824,-833.66,0.00021917,2]
[363068207,1748566241833,-420.0,0.00021917,2]
[363068209,1748566241842,-1715.83,0.00021917,2]
[363068211,1748566241851,-420.0,0.00021917,2]
[363068213,1748566241861,-923.18,0.00021917,2]
[363068215,1748566241874,-420.0,0.00021917,2]
[363068217,1748566241884,-151.45216591,0.00021917,2]
[363068219,1748566241893,-420.0,0.00021917,2]
[363068221,1748566241903,-164.2793136,0.00021917,2]
[363068223,1748566241912,-420.0,0.00021917,2]
[363068225,1748566241921,-577.37,0.00021917,2]
[363068227,1748566241930,-1205.33,0.00021917,2]
[363068229,1748566241939,-420.0,0.00021917,2]
[363068231,1748566241948,-898.28,0.00021917,2]
[363068232,1748566241957,-456.45,0.00021917,2]
[363068234,1748566241967,-257.55236012,0.00021917,2]
[363068236,1748566241976,-420.0,0.00021917,2]
[363068238,1748566241986,-583.32,0.00021917,2]
[363068241,1748566241995,-420.0,0.00021917,2]
[363068242,1748566242005,-698.8,0.00021917,2]
[363068244,1748566242014,-597.43,0.00021917,2]
[363068247,1748566242025,-1092.62,0.00021917,2]
[363068248,1748566242035,-428.37540705,0.00021917,2]
[363068250,1748566242044,-865.39,0.00021917,2]
[363068252,1748566242054,-420.0,0.00021917,2]
[363068254,1748566242064,-420.0,0.00021917,2]
[363068256,1748566242073,-420.0,0.00021917,2]
[363068258,1748566242082,-156.427518,0.00021917,2]
[363068260,1748566242091,-158.130176,0.00021917,2]
[363068262,1748566242101,-780.99,0.00021917,2]
[363068264,1748566242112,-420.0,0.00021917,2]
[363068266,1748566242123,-759.56,0.00021917,2]
[363068269,1748566242134,-830.79,0.00021917,2]
[363068271,1748566242144,-618.53,0.00021917,2]
[363068273,1748566242153,-420.0,0.00021917,2]
[363068275,1748566242163,-420.0,0.00021917,2]
[363068277,1748566242174,-420.0,0.00021917,2]
[363068279,1748566242183,-1564.64,0.00021917,2]
[363068281,1748566242193,-1000.0,0.00021917,2]
[363068283,1748566242202,-506.54,0.00021917,2]
[363068285,1748566242211,-1486.64,0.00021917,2]
[363068287,1748566242221,-420.0,0.00021917,2]
[363068289,1748566242231,-480.37,0.00021917,2]
[363068291,1748566242240,-420.0,0.00021917,2]
[363068293,1748566242250,-420.0,0.00021917,2]
[363068295,1748566242260,-420.0,0.00021917,2]
[363068297,1748566242269,-457.38,0.00021917,2]
[363068299,1748566242278,-420.0,0.00021917,2]
[363068301,1748566242288,-420.0,0.00021917,2]
[363068303,1748566242297,-589.31,0.00021917,2]
[363068305,1748566242307,-592.76,0.00021917,2]
[363068307,1748566242316,-509.21,0.00021917,2]
[363068309,1748566242325,-1267.57,0.00021917,2]
[363068311,1748566242334,-721.82,0.00021917,2]
[363068313,1748566242343,-420.0,0.00021917,2]
[363068315,1748566242352,-1120.6,0.00021917,2]
[363068317,1748566242361,-420.0,0.00021917,2]
[363068319,1748566242373,-1220.68,0.00021917,2]
[363068321,1748566242383,-463.61,0.00021917,2]
[363068323,1748566242393,-420.0,0.00021917,2]
[363068325,1748566242402,-1421.12,0.00021917,2]
[363068327,1748566242412,-420.0,0.00021917,2]
[363068329,1748566242422,-546.31,0.00021917,2]
[363068331,1748566242432,-421.163188,0.00021917,2]
[363068333,1748566242441,-2622.91,0.00021917,2]
[363068335,1748566242451,-289.71875285,0.00021917,2]
[363068337,1748566242460,-420.0,0.00021917,2]
[363068339,1748566242470,-420.0,0.00021917,2]
[363068341,1748566242479,-1973.6,0.00021917,2]
[363068343,1748566242489,-491.02,0.00021917,2]
[363068345,1748566242498,-482.2,0.00021917,2]
[363068347,1748566242507,-1104.21,0.00021917,2]
[363068349,1748566242516,-837.54,0.00021917,2]
[363068351,1748566242526,-420.0,0.00021917,2]
[363068353,1748566242536,-420.0,0.00021917,2]
[363068355,1748566242546,-420.0,0.00021917,2]
[363068357,1748566242555,-550.97,0.00021917,2]
[363068359,1748566242565,-420.0,0.00021917,2]
[363068361,1748566242575,-420.0,0.00021917,2]
[363068363,1748566242587,-464.72,0.00021917,2]
[363068365,1748566242596,-420.0,0.00021917,2]
[363068367,1748566242605,-420.0,0.00021917,2]
[363068369,1748566242615,-420.0,0.00021917,2]
[363068371,1748566242626,-1341.32,0.00021917,2]
[363068373,1748566242635,-595.89,0.00021917,2]
[363068375,1748566242644,-1426.74,0.00021917,2]
[363068377,1748566242654,-423.93618263,0.00021917,2]
[363068379,1748566242664,-420.0,0.00021917,2]
[363068381,1748566242673,-165.674503,0.00021917,2]
[363068383,1748566242682,-155.241909,0.00021917,2]
[363068385,1748566242694,-420.0,0.00021917,2]
[363068388,1748566242709,-420.0,0.00021917,2]
[363068390,1748566242721,-556.65,0.00021917,2]
[363068394,1748566242731,-498.95,0.00021917,2]
[363068397,1748566242741,-582.32,0.00021917,2]
[363068400,1748566242752,-1559.3,0.00021917,2]
[363068402,1748566242761,-420.0,0.00021917,2]
[363068404,1748566242770,-575.22,0.00021917,2]
[363068407,1748566242780,-420.0,0.00021917,2]
[363068409,1748566242789,-332.82190791,0.00021917,2]
[363068411,1748566242798,-420.0,0.00021917,2]
[363068415,1748566242808,-278.49956951,0.00021917,2]
[363068418,1748566242817,-420.0,0.00021917,2]
[363068421,1748566242827,-420.0,0.00021917,2]
[363068424,1748566242836,-420.0,0.00021917,2]
[363068427,1748566242845,-420.0,0.00021917,2]
[363068430,1748566242855,-420.0,0.00021917,2]
[363068433,1748566242865,-422.44274427,0.00021917,2]
[363068437,1748566242875,-420.0,0.00021917,2]
[363068441,1748566242886,-420.0,0.00021917,2]
[363068443,1748566242895,-420.0,0.00021917,2]
[363068445,1748566242905,-420.0,0.00021917,2]
[363068447,1748566242914,-420.0,0.00021917,2]
[363068449,1748566242923,-420.0,0.00021917,2]
[363068451,1748566242933,-420.0,0.00021917,2]
[363068453,1748566242942,-575.77,0.00021917,2]
[363068455,1748566242951,-1499.85,0.00021917,2]
[363068457,1748566242962,-523.51,0.00021917,2]
[363068459,1748566242971,-420.0,0.00021917,2]
[363068461,1748566242980,-420.0,0.00021917,2]
[363068463,1748566242989,-420.0,0.00021917,2]
[363068465,1748566242999,-420.0,0.00021917,2]
[363068467,1748566243008,-420.0,0.00021917,2]
[363068469,1748566243018,-1209.76,0.00021917,2]
[363068471,1748566243027,-420.0,0.00021917,2]
[363068473,1748566243036,-420.0,0.00021917,2]
[363068475,1748566243045,-1325.67,0.00021917,2]
[363068477,1748566243055,-420.0,0.00021917,2]
[363068479,1748566243064,-500.0,0.00021917,2]
[363068481,1748566243073,-420.0,0.00021917,2]
[363068483,1748566243082,-420.0,0.00021917,2]
[363068485,1748566243091,-422.40272429,0.00021917,2]
[363068487,1748566243101,-420.0,0.00021917,2]
[363068489,1748566243112,-2706.1,0.00021917,2]
[363068491,1748566243125,-439.15,0.00021917,2]
[363068493,1748566243137,-420.0,0.00021917,2]
[363068495,1748566243147,-420.0,0.00021917,2]
[363068497,1748566243156,-1028.16,0.00021917,2]
[363068499,1748566243166,-825.56,0.00021917,2]
[363068501,1748566243175,-699.92,0.00021917,2]
[363068503,1748566243184,-420.0,0.00021917,2]
[363068505,1748566243194,-1849.45,0.00021917,2]
[363068507,1748566243204,-420.0,0.00021917,2]
[363068509,1748566243213,-425.62,0.00021917,2]
[363068511,1748566243223,-420.0,0.00021917,2]
[363068513,1748566243232,-420.0,0.00021917,2]
[363068515,1748566243241,-420.0,0.00021917,2]
[363068517,1748566243250,-420.0,0.00021917,2]
[363068541,1748566243449,-420.0,0.00021917,2]
[363068542,1748566243489,-464.44,0.00021917,2]
[363068543,1748566243498,-503.57,0.00021917,2]
[363068544,1748566243507,-420.0,0.00021917,2]
[363068545,1748566243517,-420.0,0.00021917,2]
[363068546,1748566243526,-420.0,0.00021917,2]
[363068547,1748566243535,-1140.13,0.00021917,2]
[363068548,1748566243545,-420.0,0.00021917,2]
[363068549,1748566243554,-420.0,0.00021917,2]
[363068550,1748566243563,-420.0,0.00021917,2]
[363068551,1748566243572,-734.85,0.00021917,2]
[363068552,1748566243583,-959.15,0.00021917,2]
[363068554,1748566243593,-420.0,0.00021917,2]
[363068556,1748566243603,-574.26,0.00021917,2]
[363068558,1748566243612,-420.0,0.00021917,2]
[363068560,1748566243624,-420.0,0.00021917,2]
[363068562,1748566243634,-420.0,0.00021917,2]
[363068565,1748566243644,-420.0,0.00021917,2]
[363068567,1748566243653,-420.0,0.00021917,2]
[363068569,1748566243664,-554.37,0.00021917,2]
[363068571,1748566243674,-420.0,0.00021917,2]
[363068573,1748566243683,-3023.11,0.00021917,2]
[363068575,1748566243693,-420.0,0.00021917,2]
[363068577,1748566243703,-420.0,0.00021917,2]
[363068579,1748566243712,-511.43,0.00021917,2]
[363068581,1748566243721,-420.0,0.00021917,2]
[363068583,1748566243730,-420.0,0.00021917,2]
[363068585,1748566243740,-1364.66,0.00021917,2]
[363068587,1748566243749,-439.18,0.00021917,2]
[363068589,1748566243758,-420.0,0.00021917,2]
[363068591,1748566243766,-420.0,0.00021917,2]
[363068593,1748566243775,-879.33,0.00021917,2]
[363068595,1748566243784,-420.0,0.00021917,2]
[363068597,1748566243793,-420.0,0.00021917,2]
[363068599,1748566243802,-420.0,0.00021917,2]
[363068601,1748566243811,-420.0,0.00021917,2]
[363068603,1748566243820,-420.0,0.00021917,2]
[363068605,1748566243829,-1064.15,0.00021917,2]
[363068607,1748566243839,-420.0,0.00021917,2]
[363068609,1748566243850,-502.56,0.00021917,2]
[363068611,1748566243859,-491.08,0.00021917,2]
[363068613,1748566243871,-420.0,0.00021917,2]
[363068615,1748566243881,-420.0,0.00021917,2]
[363068617,1748566243893,-420.0,0.00021917,2]
[363068619,1748566243902,-1807.3,0.00021917,2]
[363068621,1748566243911,-420.0,0.00021917,2]
[363068623,1748566243921,-1101.13,0.00021917,2]
[363068625,1748566243931,-507.56,0.00021917,2]
[363068628,1748566243942,-420.0,0.00021917,2]
[363068629,1748566243952,-420.0,0.00021917,2]
[363068631,1748566243961,-420.0,0.00021917,2]
[363068633,1748566243971,-420.0,0.00021917,2]
[363068635,1748566243980,-1688.27,0.00021917,2]
[363068637,1748566243989,-420.0,0.00021917,2]
[363068639,1748566243999,-420.0,0.00021917,2]
[363068641,1748566244008,-1402.37,0.00021917,2]
[363068643,1748566244016,-420.0,0.00021917,2]
[363068646,1748566244026,-420.0,0.00021917,2]
[363068647,1748566244036,-420.0,0.00021917,2]
[363068650,1748566244047,-443.72,0.00021917,2]
[363068652,1748566244056,-420.0,0.00021917,2]
[363068654,1748566244066,-422.61145374,0.00021917,2]
[363068656,1748566244075,-286.27515209,0.00021917,2]
[363068658,1748566244085,-420.0,0.00021917,2]
[363068660,1748566244095,-841.23,0.00021917,2]
[363068662,1748566244105,-420.0,0.00021917,2]
[363068664,1748566244115,-420.0,0.00021917,2]
[363068666,1748566244124,-420.0,0.00021917,2]
[363068668,1748566244136,-437.5,0.00021917,2]
[363068670,1748566244145,-420.0,0.00021917,2]
[363068672,1748566244155,-420.0,0.00021917,2]
[363068673,1748566244164,-1553.79,0.00021917,2]
[363068675,1748566244173,-420.0,0.00021917,2]
[363068677,1748566244183,-420.0,0.00021917,2]
[363068679,1748566244192,-1525.89,0.00021917,2]
[363068681,1748566244201,-420.0,0.00021917,2]
[363068683,1748566244211,-1489.21,0.00021917,2]
[363068686,1748566244222,-420.0,0.00021917,2]
[363068688,1748566244231,-420.0,0.00021917,2]
[363068690,1748566244241,-536.64,0.00021917,2]
[363068692,1748566244250,-420.0,0.00021917,2]
[363068694,1748566244259,-11168.45,0.00021917,2]
[363068696,1748566244268,-821.0,0.00021917,2]
[363068698,1748566244278,-420.0,0.00021917,2]
[363068700,1748566244287,-431.93,0.00021917,2]
[363068702,1748566244296,-1231.82,0.00021917,2]
[363068703,1748566244306,-420.0,0.00021917,2]
[363068705,1748566244316,-1332.92,0.00021917,2]
[363068707,1748566244325,-420.0,0.00021917,2]
[363068709,1748566244335,-420.0,0.00021917,2]
[363068711,1748566244344,-1332.31,0.00021917,2]
[363068714,1748566244354,-420.0,0.00021917,2]
[363068716,1748566244365,-1027.18,0.00021917,2]
[363068717,1748566244374,-420.0,0.00021917,2]
[363068719,1748566244384,-511.8,0.00021917,2]
[363068722,1748566244393,-420.0,0.00021917,2]
[363068724,1748566244404,-420.0,0.00021917,2]
[363068726,1748566244414,-420.0,0.00021917,2]
[363068728,1748566244423,-740.98,0.00021917,2]
[363068730,1748566244432,-420.0,0.00021917,2]
[363068732,1748566244442,-420.0,0.00021917,2]
[363068734,1748566244451,-420.0,0.00021917,2]
[363068736,1748566244460,-2250.87,0.00021917,2]
[363068738,1748566244469,-508.22,0.00021917,2]
[363068740,1748566244478,-508.22,0.00021917,2]
[363068742,1748566244488,-508.22,0.00021917,2]
[363068744,1748566244497,-528.34,0.00021917,2]
[363068746,1748566244506,-508.22,0.00021917,2]
[363068748,1748566244516,-1933.09,0.00021917,2]
[363068750,1748566244526,-816.23,0.00021917,2]
[363068752,1748566244535,-420.0,0.00021917,2]
[363068754,1748566244545,-500.0,0.00021917,2]
[363068756,1748566244554,-1291.5,0.00021917,2]
[363068758,1748566244564,-420.0,0.00021917,2]
[363068760,1748566244573,-420.0,0.00021917,2]
[363068762,1748566244585,-420.0,0.00021917,2]
[363068764,1748566244595,-420.0,0.00021917,2]
[363068766,1748566244604,-1709.25,0.00021917,2]
[363068768,1748566244616,-800.83,0.00021917,2]
[363068770,1748566244626,-1752.37,0.00021917,2]
[363068772,1748566244635,-420.0,0.00021917,2]
[363068774,1748566244644,-192.83911043,0.00021917,2]
[363068776,1748566244654,-420.0,0.00021917,2]
[363068778,1748566244664,-420.0,0.00021917,2]
[363068780,1748566244674,-420.0,0.00021917,2]
[363068782,1748566244683,-420.0,0.00021917,2]
[363068784,1748566244692,-939.86,0.00021917,2]
[363068786,1748566244701,-506.72,0.00021917,2]
[363068788,1748566244711,-1820.43,0.00021917,2]
[363068790,1748566244720,-420.0,0.00021917,2]
[363068792,1748566244730,-420.0,0.00021917,2]
[363068794,1748566244739,-632.41,0.00021917,2]
[363068796,1748566244748,-420.0,0.00021917,2]
[363068798,1748566244758,-576.38,0.00021917,2]
[363068800,1748566244768,-420.0,0.00021917,2]
[363068802,1748566244777,-420.0,0.00021917,2]
[363068804,1748566244786,-420.0,0.00021917,2]
[363068806,1748566244795,-420.0,0.00021917,2]
[363068808,1748566244804,-420.0,0.00021917,2]
[363068810,1748566244813,-499.3,0.00021917,2]
[363068812,1748566244821,-528.57,0.00021917,2]
[363068814,1748566244831,-1089.3,0.00021917,2]
[363068816,1748566244839,-1389.97,0.00021917,2]
[363068818,1748566244848,-420.0,0.00021917,2]
[363068820,1748566244858,-736.38,0.00021917,2]
[363068822,1748566244869,-364.80867097,0.00021917,2]
[363068824,1748566244878,-420.0,0.00021917,2]
[363068826,1748566244887,-1648.28,0.00021917,2]
[363068828,1748566244897,-425.03920187,0.00021917,2]
[363068830,1748566244906,-557.62,0.00021917,2]
[363068832,1748566244915,-839.91,0.00021917,2]
[363068834,1748566244925,-420.0,0.00021917,2]
[363068836,1748566244934,-1226.43,0.00021917,2]
[363068838,1748566244943,-420.0,0.00021917,2]
[363068840,1748566244953,-420.0,0.00021917,2]
[363068842,1748566244962,-420.0,0.00021917,2]
[363068844,1748566244972,-3167.28,0.00021917,2]
[363068846,1748566244981,-280.55,0.00021917,2]
[363068848,1748566244990,-420.0,0.00021917,2]
[363068850,1748566245000,-15869.81,0.00021917,2]
[363068852,1748566245009,-420.0,0.00021917,2]
[363068854,1748566245019,-1555.5,0.00021917,2]
[363068856,1748566245028,-565.62,0.00021917,2]
[363068858,1748566245037,-2198.86,0.00021917,2]
[363068860,1748566245047,-7218.65,0.00021917,2]
[363068862,1748566245057,-653.18,0.00021917,2]
[363068865,1748566245067,-3060.58,0.00021917,2]
[363068867,1748566245076,-420.0,0.00021917,2]
[363068869,1748566245086,-1009.91,0.00021917,2]
[363068871,1748566245095,-420.0,0.00021917,2]
[363068873,1748566245105,-420.0,0.00021917,2]
[363068875,1748566245116,-420.0,0.00021917,2]
[363068877,1748566245126,-420.0,0.00021917,2]
[363068879,1748566245135,-420.0,0.00021917,2]
[363068881,1748566245145,-602.82,0.00021917,2]
[363068883,1748566245156,-420.0,0.00021917,2]
[363068885,1748566245165,-420.0,0.00021917,2]
[363068887,1748566245174,-491.02,0.00021917,2]
[363068889,1748566245183,-420.0,0.00021917,2]
[363068891,1748566245193,-420.0,0.00021917,2]
[363068893,1748566245202,-14384.92,0.00021917,2]
[363068895,1748566245211,-420.0,0.00021917,2]
[363068897,1748566245220,-420.0,0.00021917,2]
[363068899,1748566245229,-420.0,0.00021917,2]
[363068901,1748566245239,-4057.99,0.00021917,2]
[363068903,1748566245248,-319.93236381,0.00021917,2]
[363068905,1748566245257,-969.57,0.00021917,2]
[363068907,1748566245267,-2303.39,0.00021917,2]
[363068909,1748566245276,-420.0,0.00021917,2]
[363068911,1748566245285,-16029.67,0.00021917,2]
[363068913,1748566245295,-420.0,0.00021917,2]
[363068915,1748566245304,-420.0,0.00021917,2]
[363068917,1748566245313,-420.0,0.00021917,2]
[363068919,1748566245322,-420.0,0.00021917,2]
[363068921,1748566245332,-420.0,0.00021917,2]
[363068923,1748566245341,-1747.33,0.00021917,2]
[363068925,1748566245351,-420.0,0.00021917,2]
[363068927,1748566245360,-879.2,0.00021917,2]
[363068929,1748566245370,-437.46,0.00021917,2]
[363068931,1748566245379,-681.49,0.00021917,2]
[363068933,1748566245389,-420.0,0.00021917,2]
[363068935,1748566245398,-1056.97,0.00021917,2]
[363068937,1748566245408,-1805.0,0.00021917,2]
[363068939,1748566245417,-420.0,0.00021917,2]
[363068941,1748566245426,-420.0,0.00021917,2]
[363068943,1748566245435,-1541.88,0.00021917,2]
[363068945,1748566245444,-420.0,0.00021917,2]
[363068947,1748566245454,-420.0,0.00021917,2]
[363068949,1748566245463,-420.0,0.00021917,2]
[363068951,1748566245472,-420.0,0.00021917,2]
[363068953,1748566245482,-420.0,0.00021917,2]
[363068955,1748566245491,-423.78,0.00021917,2]
[363068957,1748566245500,-1587.83,0.00021917,2]
[363068959,1748566245509,-420.0,0.00021917,2]
[363068961,1748566245518,-420.0,0.00021917,2]
[363068963,1748566245527,-15979.7,0.00021917,2]
[363068965,1748566245536,-1581.03,0.00021917,2]
[363068966,1748566245545,-420.0,0.00021917,2]
[363068968,1748566245554,-1125.95,0.00021917,2]
[363068969,1748566245564,-420.0,0.00021917,2]
[363068971,1748566245573,-420.0,0.00021917,2]
[363068973,1748566245584,-2256.4,0.00021917,2]
[363068975,1748566245595,-736.73,0.00021917,2]
[363068977,1748566245604,-420.0,0.00021917,2]
[363068979,1748566245613,-420.0,0.00021917,2]
[363068981,1748566245625,-420.0,0.00021917,2]
[363068983,1748566245635,-420.0,0.00021917,2]
[363068985,1748566245643,-496.88,0.00021917,2]
[363068987,1748566245653,-420.0,0.00021917,2]
[363068989,1748566245663,-420.0,0.00021917,2]
[363068993,1748566245673,-420.0,0.00021917,2]
[363068996,1748566245685,-7523.59,0.00021917,2]